Workbook

Sheet Plan
B1: pos | C1: New Pos | D1: buy | E1: cPrice | F1: Nprice | G1: Cur value | H1: newpos at curprice | I1: netDiff | J1: Gain% | K1: Future | L1: Current
A2: ALU | B2: 577.6 | C2: =B2 -> 577.6 | D2: =C2-B2 -> 0 | E2: 3.89 | F2: 2.19 | G2: =E2*B2 -> 2246.864 | H2: =F2*B2 -> 1264.944 | I2: =H2-G2 -> -981.92 | J2: =I2*100/G2 -> -43.70179949 | K2: =F2*C2 -> 1264.944 | L2: =C2*E2 -> 2246.864 | M2: =K2-L2 -> -981.92
A3: amg | B3: 849.287 | C3: 849.287 | D3: =C3-B3 -> 0 | E3: 19.2 | F3: 19.2 | G3: 16306.3104 | H3: 16306.3104 | I3: 0 | J3: 0 | K3: 16306.3104 | L3: 16306.3104 | M3: =K3-L3 -> 0
A4: amx | B4: 800.022 | C4: 800.022 | D4: 0 | E4: 20.5 | F4: 20.5 | G4: 16400.451 | H4: 16400.451 | I4: 0 | J4: 0 | K4: 16400.451 | L4: 16400.451 | M4: 0
A5: BLKRK | B5: 558 | C5: 558 | D5: 0 | E5: 26 | F5: 26 | G5: 14508 | H5: 14508 | I5: 0 | J5: 0 | K5: 14508 | L5: 14508 | M5: 0
A6: CANRT | B6: 10000 | C6: 10000 | D6: 0 | E6: 1 | F6: 1 | G6: 10000 | H6: 10000 | I6: 0 | J6: 0 | K6: 10000 | L6: 10000 | M6: 0
A7: CAR | B7: 12.5 | C7: 12.5 | D7: 0 | E7: 11.62 | F7: 0.8 | G7: 145.25 | H7: 10 | I7: -135.25 | J7: -93.11531842 | K7: 10 | L7: 145.25 | M7: -135.25
A8: CASH | B8: 374301.414 | C8: 374301.414 | D8: 0 | E8: 1 | F8: 1 | G8: 374301.414 | H8: 374301.414 | I8: 0 | J8: 0 | K8: 374301.414 | L8: 374301.414 | M8: 0
A9: ccash | B9: 6400 | C9: 6400 | D9: 0 | E9: 0.96 | F9: 0.96 | G9: 6144 | H9: 6144 | I9: 0 | J9: 0 | K9: 6144 | L9: 6144 | M9: 0
A10: FAL | B10: 467 | C10: 467 | D10: 0 | E10: 23.99 | F10: =E10 -> 23.99 | G10: 11203.33 | H10: 11203.33 | I10: 0 | J10: 0 | K10: 11203.33 | L10: 11203.33 | M10: 0
A11: Flati | B11: 342.168 | C11: 342.168 | D11: 0 | E11: 54 | F11: 54 | G11: 18477.072 | H11: 18477.072 | I11: 0 | J11: 0 | K11: 18477.072 | L11: 18477.072 | M11: 0
A12: IRAa | B12: 14000 | C12: =B12 -> 14000 | D12: 0 | E12: 1 | F12: 1 | G12: 14000 | H12: 14000 | I12: 0 | J12: 0 | K12: 14000 | L12: 14000 | M12: 0
A13: IRAn | B13: 13000 | C13: 13000 | D13: 0 | E13: 1 | F13: 1 | G13: 13000 | H13: 13000 | I13: 0 | J13: 0 | K13: 13000 | L13: 13000 | M13: 0
A14: JAVA | B14: 43 | C14: 43 | D14: 0 | E14: 9.07 | F14: 9.07 | G14: 390.01 | H14: 390.01 | I14: 0 | J14: 0 | K14: 390.01 | L14: 390.01 | M14: 0
A15: JDSU | B15: 175 | C15: 175 | D15: 0 | E15: 6.79 | F15: 6.79 | G15: 1188.25 | H15: 1188.25 | I15: 0 | J15: 0 | K15: 1188.25 | L15: 1188.25 | M15: 0
A16: LOAN | B16: 17000 | C16: 17000 | D16: 0 | E16: 1 | F16: 1 | G16: 17000 | H16: 17000 | I16: 0 | J16: 0 | K16: 17000 | L16: 17000 | M16: 0
A17: LVLT | B17: 125 | C17: 125 | D17: 0 | E17: 1.35 | F17: 1.35 | G17: 168.75 | H17: 168.75 | I17: 0 | J17: 0 | K17: 168.75 | L17: 168.75 | M17: 0
A18: MLNK | B18: 80 | C18: 80 | D18: 0 | E18: 8.38 | F18: 8.38 | G18: 670.4 | H18: 670.4 | I18: 0 | J18: 0 | K18: 670.4 | L18: 670.4 | M18: 0
A19: NT | B19: 25 | C19: 25 | D19: 0 | F19: 0 | G19: 0 | H19: 0 | I19: 0 | K19: 0 | L19: 0 | M19: 0
A20: rrspA | B20: 9100 | C20: 9100 | D20: 0 | E20: 0.96 | F20: 0.96 | G20: 8736 | H20: 8736 | I20: 0 | J20: 0 | K20: 8736 | L20: 8736 | M20: 0
A21: rrspn | B21: 46300 | C21: 46300 | D21: 0 | E21: 0.96 | F21: 0.96 | G21: 44448 | H21: 44448 | I21: 0 | J21: 0 | K21: 44448 | L21: 44448 | M21: 0
A22: RTMNT | B22: 97000 | C22: 97000 | D22: 0 | E22: 1 | F22: 1 | G22: 97000 | H22: 97000 | I22: 0 | J22: 0 | K22: 97000 | L22: 97000 | M22: 0
A23: S | B23: 50 | C23: 50 | D23: 0 | E23: 3.44 | F23: 3.44 | G23: 172 | H23: 172 | I23: 0 | J23: 0 | K23: 172 | L23: 172 | M23: 0
A24: saving | B24: 170000 | C24: 170000 | D24: 0 | E24: 1 | F24: 1 | G24: 170000 | H24: 170000 | I24: 0 | J24: 0 | K24: 170000 | L24: 170000 | M24: 0
A25: seli | B25: 255 | C25: 255 | D25: 0 | E25: 44 | F25: 44 | G25: 11220 | H25: 11220 | I25: 0 | J25: 0 | K25: 11220 | L25: 11220 | M25: 0
A26: XOM | B26: 50 | C26: 50 | D26: 0 | E26: 73.62 | F26: 85 | G26: 3681 | H26: 4250 | I26: 569 | J26: 15.45775604 | K26: 4250 | L26: 3681 | M26: 569
A27: UPS | B27: 100 | C27: =B27 -> 100 | D27: 0 | E27: 57.62 | F27: 65 | G27: 5762 | H27: 6500 | I27: 738 | J27: 12.80805276 | K27: 6500 | L27: 5762 | M27: 738
A28: JNJ | B28: 150 | C28: 150 | D28: 0 | E28: 61.16 | F28: 65 | G28: 9174 | H28: 9750 | I28: 576 | J28: 6.278613473 | K28: 9750 | L28: 9174 | M28: 576
A29: SAI | B29: 1330.1332 | C29: 1330.1332 | D29: 0 | E29: 18.93 | F29: 24 | G29: 25179.42148 | H29: 31923.1968 | I29: 6743.775324 | J29: 26.78288431 | K29: 31923.1968 | L29: 25179.42148 | M29: 6743.775324
A30: EEM | B30: 160 | C30: 160 | D30: 0 | E30: 41.53 | F30: 35 | G30: 6644.8 | H30: 5600 | I30: -1044.8 | J30: -15.72357332 | K30: 5600 | L30: 6644.8 | M30: -1044.8
A31: EWZ | B31: 50 | C31: 50 | D31: 0 | E31: 76.25 | F31: 55 | G31: 3812.5 | H31: 2750 | I31: -1062.5 | J31: -27.86885246 | K31: 2750 | L31: 3812.5 | M31: -1062.5
A32: SPY | B32: 475 | C32: 475 | D32: 0 | E32: 109.79 | F32: 110 | G32: 52150.25 | H32: 52250 | I32: 99.75 | J32: 0.1912742508 | K32: 52250 | L32: 52150.25 | M32: 99.75
A33: HPQ | B33: 332.2 | C33: 332.2 | D33: 0 | E33: 48.47 | F33: 45 | G33: 16101.734 | H33: 14949 | I33: -1152.734 | J33: -7.159067464 | K33: 14949 | L33: 16101.734 | M33: -1152.734
A34: HON | B34: 150 | C34: 150 | D34: 0 | E34: 38.42 | F34: 40 | G34: =E34*B34 -> 5763 | H34: =F34*B34 -> 6000 | I34: =H34-G34 -> 237 | J34: =I34*100/G34 -> 4.112441437 | K34: =F34*C34 -> 6000 | L34: =C34*E34 -> 5763 | M34: 237
A35: DIA | B35: 485 | C35: 485 | D35: 0 | E35: 100.86 | F35: 110 | G35: 48917.1 | H35: 53350 | I35: 4432.9 | J35: 9.06206623 | K35: 53350 | L35: 48917.1 | M35: 4432.9
A36: QQQQ | B36: 1025 | C36: 1025 | D36: 0 | E36: 43.21 | F36: 45 | G36: 44290.25 | H36: 46125 | I36: 1834.75 | J36: 4.142559593 | K36: 46125 | L36: 44290.25 | M36: 1834.75
A37: BNI | B37: 50 | C37: 50 | D37: 0 | E37: 64.04 | F37: 90 | G37: 3202 | H37: 4500 | I37: 1298 | J37: 40.53716427 | K37: 4500 | L37: 3202 | M37: 1298
A38: HD | B38: 115 | C38: 115 | D38: 0 | E38: 27.63 | F38: 35 | G38: 3177.45 | H38: 4025 | I38: 847.55 | J38: 26.67390518 | K38: 4025 | L38: 3177.45 | M38: 847.55
A39: PG | B39: 100 | C39: 100 | D39: 0 | E39: 57.79 | F39: 70 | G39: 5779 | H39: 7000 | I39: 1221 | J39: 21.12822288 | K39: 7000 | L39: 5779 | M39: 1221
A40: EBAY | B40: 50 | C40: 50 | D40: 0 | E40: 25.15 | F40: 20 | G40: 1257.5 | H40: 1000 | I40: -257.5 | J40: -20.47713718 | K40: 1000 | L40: 1257.5 | M40: -257.5
A41: SNY | B41: 150 | C41: 150 | D41: 0 | E41: 39.47 | F41: 40 | G41: 5920.5 | H41: 6000 | I41: 79.5 | J41: 1.342791994 | K41: 6000 | L41: 5920.5 | M41: 79.5
A42: LOW | B42: 250 | C42: 250 | D42: 0 | E42: 21.76 | F42: 28 | G42: 5440 | H42: 7000 | I42: 1560 | J42: 28.67647059 | K42: 7000 | L42: 5440 | M42: 1560
A43: NRG | B43: 75 | C43: 75 | D43: 0 | E43: 28.89 | F43: 28 | G43: 2166.75 | H43: 2100 | I43: -66.75 | J43: -3.080650744 | K43: 2100 | L43: 2166.75 | M43: -66.75
A44: PBR | B44: 50 | C44: 50 | D44: 0 | E44: 51.41 | F44: 50 | G44: 2570.5 | H44: 2500 | I44: -70.5 | J44: -2.742657071 | K44: 2500 | L44: 2570.5 | M44: -70.5
A45: BMY | B45: 250 | C45: 250 | D45: 0 | E45: 22.97 | F45: 30 | G45: 5742.5 | H45: 7500 | I45: 1757.5 | J45: 30.60513714 | K45: 7500 | L45: 5742.5 | M45: 1757.5
A46: ORCL | B46: 50 | C46: 50 | D46: 0 | E46: 22.42 | F46: 28 | G46: 1121 | H46: 1400 | I46: 279 | J46: 24.88849242 | K46: 1400 | L46: 1121 | M46: 279
A47: BP | B47: 250 | C47: 250 | D47: 0 | E47: 56.4 | F47: 60 | G47: 14100 | H47: 15000 | I47: 900 | J47: 6.382978723 | K47: 15000 | L47: 14100 | M47: 900
A48: QLD | B48: 225 | C48: 500 | D48: 275 | E48: 53.16 | F48: 50 | G48: 11961 | H48: 11250 | I48: -711 | J48: -5.944319037 | K48: 25000 | L48: 26580 | M48: -1580
A49: gsk | B49: 150 | C49: =B49 -> 150 | D49: 0 | E49: 41.91 | F49: 45 | G49: 6286.5 | H49: 6750 | I49: 463.5 | J49: 7.372942019 | K49: 6750 | L49: 6286.5 | M49: 463.5
A50: msft | B50: 410 | C50: 410 | D50: 0 | E50: 25 | F50: 28 | G50: 10250 | H50: 11480 | I50: 1230 | J50: 12 | K50: 11480 | L50: 10250 | M50: 1230
A51: KFT | B51: 150 | C51: 150 | D51: 0 | E51: 27.21 | F51: 35 | G51: 4081.5 | H51: 5250 | I51: 1168.5 | J51: 28.62918045 | K51: 5250 | L51: 4081.5 | M51: 1168.5
A52: INTC | B52: 1075 | C52: 1075 | D52: 0 | E52: 20.41 | F52: 25 | G52: 21940.75 | H52: 26875 | I52: 4934.25 | J52: 22.48897599 | K52: 26875 | L52: 21940.75 | M52: 4934.25
A53: TWX | B53: 250 | C53: 250 | D53: 0 | E53: 31.44 | F53: 34 | G53: 7860 | H53: 8500 | I53: 640 | J53: 8.142493639 | K53: 8500 | L53: 7860 | M53: 640
A54: INFY | B54: 200 | C54: 200 | D54: 0 | E54: 47.93 | F54: 45 | G54: 9586 | H54: 9000 | I54: -586 | J54: -6.113081577 | K54: 9000 | L54: 9586 | M54: -586
A55: CAT | B55: 100 | C55: 100 | D55: 0 | E55: 57.85 | F55: 50 | G55: 5785 | H55: 5000 | I55: -785 | J55: -13.56957649 | K55: 5000 | L55: 5785 | M55: -785
A56: LRCX | B56: 50 | C56: 50 | D56: 0 | E56: 36.82 | F56: 40 | G56: 1841 | H56: 2000 | I56: 159 | J56: 8.636610538 | K56: 2000 | L56: 1841 | M56: 159
A57: MT | B57: 50 | C57: 50 | D57: 0 | E57: 39.73 | F57: 40 | G57: 1986.5 | H57: 2000 | I57: 13.5 | J57: 0.6795872137 | K57: 2000 | L57: 1986.5 | M57: 13.5
A58: USB | B58: 200 | C58: 200 | D58: 0 | E58: 23.81 | F58: 25 | G58: 4762 | H58: 5000 | I58: 238 | J58: 4.997900042 | K58: 5000 | L58: 4762 | M58: 238
A59: FHKCX | B59: 138.44 | C59: 138.44 | D59: 0 | E59: 27.97 | F59: 30 | G59: 3872.1668 | H59: 4153.2 | I59: 281.0332 | J59: 7.257776189 | K59: 4153.2 | L59: 3872.1668 | M59: 281.0332
A60: GLW | B60: 300 | C60: 300 | D60: 0 | E60: 15.54 | F60: 26 | G60: 4662 | H60: 7800 | I60: 3138 | J60: 67.31016731 | K60: 7800 | L60: 4662 | M60: 3138
A61: T | B61: 109 | C61: 109 | D61: 0 | E61: 26 | F61: 45 | G61: 2834 | H61: 4905 | I61: 2071 | J61: 73.07692308 | K61: 4905 | L61: 2834 | M61: 2071
A62: AMD | B62: 575 | C62: 575 | D62: 0 | E62: 5.87 | F62: 6 | G62: 3375.25 | H62: 3450 | I62: 74.75 | J62: 2.214650767 | K62: 3450 | L62: 3375.25 | M62: 74.75
A63: ACH | B63: 150 | C63: 300 | D63: 150 | E63: 29.87 | F63: 30 | G63: 4480.5 | H63: 4500 | I63: 19.5 | J63: 0.4352192836 | K63: 9000 | L63: 8961 | M63: 39
A64: cop | B64: 280 | C64: 350 | D64: 70 | E64: 53.08 | F64: 70 | G64: 14862.4 | H64: 19600 | I64: 4737.6 | J64: 31.87641296 | K64: 24500 | L64: 18578 | M64: 5922
A65: MRK | B65: 300 | C65: =B65 -> 300 | D65: 0 | E65: 33.73 | F65: 46 | G65: 10119 | H65: 13800 | I65: 3681 | J65: 36.37711236 | K65: 13800 | L65: 10119 | M65: 3681
A66: LSI | B66: 400 | C66: =B66 -> 400 | D66: 0 | E66: 5.73 | F66: 6 | G66: =E66*B66 -> 2292 | H66: =F66*B66 -> 2400 | I66: =H66-G66 -> 108 | J66: =I66*100/G66 -> 4.712041885 | K66: =F66*C66 -> 2400 | L66: =C66*E66 -> 2292 | M66: 108
A67: AMAT | B67: 460 | C67: =B67 -> 460 | D67: =C67-B67 -> 0 | E67: 13.54 | F67: 20 | G67: 6228.4 | H67: 9200 | I67: 2971.6 | J67: 47.71048744 | K67: 9200 | L67: 6228.4 | M67: =K67-L67 -> 2971.6
A68: CTSH | B68: 100 | C68: =B68 -> 100 | D68: 0 | E68: 40.39 | F68: 40 | G68: 4039 | H68: 4000 | I68: -39 | J68: -0.965585541 | K68: 4000 | L68: 4039 | M68: -39
A69: SLT | B69: 175 | C69: =B69 -> 175 | D69: 0 | E69: 18.02 | F69: 13 | G69: 3153.5 | H69: 2275 | I69: -878.5 | J69: -27.85793563 | K69: 2275 | L69: 3153.5 | M69: -878.5
A70: DDM | B70: 380 | C70: 500 | D70: 120 | E70: 40.89 | F70: 45 | G70: 15538.2 | H70: 17100 | I70: 1561.8 | J70: 10.0513573 | K70: 22500 | L70: 20445 | M70: 2055
A71: USG | B71: 375 | C71: =B71 -> 375 | D71: 0 | E71: 17.08 | F71: 16 | G71: 6405 | H71: 6000 | I71: -405 | J71: -6.323185012 | K71: 6000 | L71: 6405 | M71: -405
A72: DD | B72: 300 | C72: 350 | D72: 50 | E72: 34.62 | F72: 45 | G72: 10386 | H72: 13500 | I72: 3114 | J72: 29.98266898 | K72: 15750 | L72: 12117 | M72: 3633
A73: MU | B73: 325 | C73: =B73 -> 325 | D73: 0 | E73: 8.05 | F73: 8 | G73: 2616.25 | H73: 2600 | I73: -16.25 | J73: -0.6211180124 | K73: 2600 | L73: 2616.25 | M73: -16.25
A74: GE | B74: 510 | C74: =B74 -> 510 | D74: 0 | E74: 15.84 | F74: 20 | G74: 8078.4 | H74: 10200 | I74: 2121.6 | J74: 26.26262626 | K74: 10200 | L74: 8078.4 | M74: 2121.6
A75: WIT | B75: 325 | C75: =B75 -> 325 | D75: 0 | E75: 19.23 | F75: 15 | G75: 6249.75 | H75: 4875 | I75: -1374.75 | J75: -21.99687988 | K75: 4875 | L75: 6249.75 | M75: -1374.75
A76: TXN | B76: 200 | C76: 250 | D76: 50 | E76: 23.52 | F76: 30 | G76: 4704 | H76: 6000 | I76: 1296 | J76: 27.55102041 | K76: 7500 | L76: 5880 | M76: 1620
A77: UNH | B77: 100 | C77: =B77 -> 100 | D77: 0 | E77: 24.92 | F77: 40 | G77: 2492 | H77: 4000 | I77: 1508 | J77: 60.51364366 | K77: 4000 | L77: 2492 | M77: 1508
A78: CMCSK | B78: 231 | C78: =B78 -> 231 | D78: 0 | E78: 14.77 | F78: 25 | G78: 3411.87 | H78: 5775 | I78: 2363.13 | J78: 69.2620176 | K78: 5775 | L78: 3411.87 | M78: 2363.13
A79: SSO | B79: 525 | C79: 600 | D79: 75 | E79: 36.99 | F79: 40 | G79: 19419.75 | H79: 21000 | I79: 1580.25 | J79: 8.137334415 | K79: 24000 | L79: 22194 | M79: 1806
A80: WFC | B80: 225 | C80: 350 | D80: 125 | E80: 30.07 | F80: 28 | G80: 6765.75 | H80: 6300 | I80: -465.75 | J80: -6.883937479 | K80: 9800 | L80: 10524.5 | M80: -724.5
A81: DOW | B81: 425 | C81: 500 | D81: 75 | E81: 27.03 | F81: 20 | G81: 11487.75 | H81: 8500 | I81: -2987.75 | J81: -26.0081391 | K81: 10000 | L81: 13515 | M81: -3515
A82: A | B82: 330 | C82: 400 | D82: 70 | E82: 27.4 | F82: 30 | G82: 9042 | H82: 9900 | I82: 858 | J82: 9.489051095 | K82: 12000 | L82: 10960 | M82: 1040
A83: nok | B83: 100 | C83: 150 | D83: 50 | E83: 13.43 | F83: 25 | G83: 1343 | H83: 2500 | I83: 1157 | J83: 86.15040953 | K83: 3750 | L83: 2014.5 | M83: 1735.5
A84: PFE | B84: 350 | C84: =B84 -> 350 | D84: 0 | E84: 17.98 | F84: 26 | G84: 6293 | H84: 9100 | I84: 2807 | J84: 44.6051168 | K84: 9100 | L84: 6293 | M84: 2807
A85: HMA | B85: 150 | C85: =B85 -> 150 | D85: 0 | E85: 7.87 | F85: 5 | G85: 1180.5 | H85: 750 | I85: -430.5 | J85: -36.46759848 | K85: 750 | L85: 1180.5 | M85: -430.5
A86: MOT | B86: 200 | C86: =B86 -> 200 | D86: 0 | E86: 8.47 | F86: 9 | G86: 1694 | H86: 1800 | I86: 106 | J86: 6.257378985 | K86: 1800 | L86: 1694 | M86: 106
A87: COMS | B87: 150 | C87: =B87 -> 150 | D87: 0 | E87: 5.81 | F87: 7 | G87: 871.5 | H87: 1050 | I87: 178.5 | J87: 20.48192771 | K87: 1050 | L87: 871.5 | M87: 178.5
A88: csco | B88: 485 | C88: =B88 -> 485 | D88: 0 | E88: 24.25 | F88: 35 | G88: 11761.25 | H88: 16975 | I88: 5213.75 | J88: 44.32989691 | K88: 16975 | L88: 11761.25 | M88: 5213.75
A89: IP | B89: 585 | C89: 700 | D89: 115 | E89: 24.68 | F89: 15 | G89: 14437.8 | H89: 8775 | I89: -5662.8 | J89: -39.22204214 | K89: 10500 | L89: 17276 | M89: -6776
A90: chk | B90: 100 | C90: 200 | D90: 100 | E90: 28.97 | F90: 40 | G90: 2897 | H90: 4000 | I90: 1103 | J90: 38.07386952 | K90: 8000 | L90: 5794 | M90: 2206
A91: UYG | B91: 800 | C91: 1000 | D91: 200 | E91: 6.14 | F91: 6 | G91: 4912 | H91: 4800 | I91: -112 | J91: -2.280130293 | K91: 6000 | L91: 6140 | M91: -140
A92: LPX | B92: 225 | C92: 300 | D92: 75 | E92: 6.8 | F92: 6 | G92: 1530 | H92: 1350 | I92: -180 | J92: -11.76470588 | K92: 1800 | L92: 2040 | M92: -240
A93: DIG | B93: 275 | C93: 500 | D93: 225 | E93: 38.67 | F93: 50 | G93: 10634.25 | H93: 13750 | I93: 3115.75 | J93: 29.29919834 | K93: 25000 | L93: 19335 | M93: 5665
A94: CAL | B94: 150 | C94: =B94 -> 150 | D94: 0 | E94: 15.69 | F94: 24 | G94: 2353.5 | H94: 3600 | I94: 1246.5 | J94: 52.96367113 | K94: 3600 | L94: 2353.5 | M94: 1246.5
A95: LUV | B95: 600 | C95: 800 | D95: 200 | E95: 9.19 | F95: 16 | G95: 5514 | H95: 9600 | I95: 4086 | J95: 74.10228509 | K95: 12800 | L95: 7352 | M95: 5448
A96: BAC | B96: 375 | C96: 400 | D96: 25 | E96: 17.16 | F96: 20 | G96: 6435 | H96: 7500 | I96: 1065 | J96: 16.55011655 | K96: 8000 | L96: 6864 | M96: 1136
A97: DELL | B97: 885 | C97: 1000 | D97: 115 | E97: 15.36 | F97: 28 | G97: 13593.6 | H97: 24780 | I97: 11186.4 | J97: 82.29166667 | K97: 28000 | L97: 15360 | M97: 12640
A98: C | B98: 1050 | C98: =B98 -> 1050 | D98: 0 | E98: 4.54 | F98: 10 | G98: 4767 | H98: 10500 | I98: =H98-G98 -> 5733 | J98: =I98*100/G98 -> 120.2643172 | K98: 10500 | L98: 4767 | M98: 5733
A99: GM | B99: 200 | C99: 300 | D99: 100 | E99: 2.27 | F99: 10 | G99: 454 | H99: 2000 | I99: 1546 | J99: 340.5286344 | K99: 3000 | L99: 681 | M99: 2319
A100: CEF | B100: 100 | C100: 50 | D100: 13 | E100: 13.93 | F100: 15 | G100: 1393 | H100: 1500 | I100: 107 | J100: 7.68126346 | K100: 750 | L100: 696.5 | M100: 53.5
A101: CNI | B101: 50 | C101: =B101 -> 50 | D101: 0 | E101: 53.1 | F101: =E101 -> 53.1 | G101: 2655 | H101: 2655 | I101: 0 | J101: 0 | K101: 2655 | L101: 2655 | M101: 0
G102: =SUM(G2:G101) -> 1467253.944 | H102: =SUM(H2:H101) -> 1550004.328 | I102: 82750.38452 | J102: 5.6398134 | K102: =SUM(K2:K101) -> 1619449.328 | L102: =SUM(L2:L101) -> 1528770.444

Sheet BuySellHist
A1: Year | B1: Bought | C1: Sold | D1: Diff | E1: Profit/loss
A2: 1996 | B2: 544451 | C2: 631689 | D2: =B2-C2 -> -87238 | E2: 40265
A3: 1997 | B3: 1081877 | C3: 969660 | D3: =B3-C3 -> 112217 | E3: 49076
A4: 1998 | B4: 785223 | C4: 968420 | D4: -183197 | E4: 23000
A5: 1999 | B5: 734343 | C5: 692360 | D5: 41983 | E5: 50984
A6: 2000 | B6: 1066627 | C6: 898088 | D6: 168539 | E6: 26871
A7: 2001 | B7: 314138 | C7: 337660 | D7: -23522 | E7: 2116
A8: 2002 | B8: 359852 | C8: 203299 | D8: 156553 | E8: -13438
A9: 2003 | B9: 77336 | C9: 138098 | D9: -60762 | E9: -2888
A10: 2004 | B10: 247499 | C10: 116668 | D10: 130831 | E10: -1458
A11: 2005 | B11: 83486 | C11: 94533 | D11: -11047 | E11: 9188
A12: 2006 | B12: 132126 | C12: 73425 | D12: 58701 | E12: -6729
A13: 2007 | B13: 163269 | C13: 134839 | D13: 28430 | E13: -549
A14: 2008 | B14: 459327 | C14: 194838 | D14: 264489 | E14: -16049
A15: 2009 | B15: 244164 | C15: 261115 | D15: -16951 | E15: 1486.52
A16: 2010 | B16: 404610 | C16: 565368 | D16: -160758 | E16: 5905
A17: 2011 | B17: 184477 | C17: 152533 | D17: 31944 | E17: 17897
A18: 2012 | B18: 101723 | C18: 397858 | D18: =B18-C18 -> -296135 | E18: 59985
A19: 2013 | B19: 135564 | C19: 152221 | D19: -16657 | E19: 30950
B20: =SUM(B2:B19) -> 7120092 | C20: =SUM(C2:C19) -> 6982672 | D20: =SUM(D2:D19) -> 137420 | E20: =SUM(E2:E19) -> 276612.52

Sheet Curval
A2: km | B2: 1250 | C2: 5.9892 | D2: 4608.225
A3: NT | B3: 25 | C3: 244.1375 | D3: 7197.125
A4: GE | B4: 510 | C4: 23.551 | D4: 11692.49 | E4: 8078.4 | F4: -3614.09 | G4: 8078.4 | H4: 15.84 | I4: -0.24 | J4: -122.4 | K4: -30.90949832
A5: STI | B5: 100 | C5: 21.435 | D5: 2159.45 | E5: 2108 | F5: -51.45 | G5: 2108 | H5: 21.08 | I5: -0.63 | J5: -63 | K5: -2.382551113
A6: C | B6: 1050 | C6: 16.5656 | D6: 13510.42 | E6: 4767 | F6: -8743.42 | G6: 4767 | H6: 4.54 | I6: -0.05 | J6: -52.5 | K6: -64.71612281
A7: MSFT | B7: 360 | C7: 26.0029 | D7: 9440.15 | E7: 9489.6 | F7: 49.45 | G7: 9489.6 | H7: 26.36 | I7: -0.14 | J7: -50.4 | K7: 0.5238264222
A8: BAC | B8: 375 | C8: 18.3341 | D8: 6636.63 | E8: 6435 | F8: -201.63 | G8: 6435 | H8: 17.16 | I8: -0.1 | J8: -37.5 | K8: -3.038138332
A9: LUV | B9: 600 | C9: 10.951 | D9: 6861.77 | E9: 5514 | F9: -1347.77 | G9: 5514 | H9: 9.19 | I9: -0.06 | J9: -36 | K9: -19.64172509
A10: CAL | B10: 150 | C10: 13.465 | D10: 2039.65 | E10: 2353.5 | F10: 313.85 | G10: 2353.5 | H10: 15.69 | I10: -0.22 | J10: -33 | K10: 15.38744392
A11: LPX | B11: 225 | C11: 9.2767 | D11: 2117.1 | E11: 1530 | F11: -587.1 | G11: 1530 | H11: 6.8 | I11: -0.09 | J11: -20.25 | K11: -27.73133059
A12: HMA | B12: 150 | C12: 9.435 | D12: 1425.25 | E12: 1180.5 | F12: -244.75 | G12: 1180.5 | H12: 7.87 | I12: -0.12 | J12: -18 | K12: -17.17242589
A13: JDSU | B13: 175 | C13: 21.676 | D13: 2595 | E13: 1188.25 | F13: -1406.75 | G13: 1188.25 | H13: 6.79 | I13: -0.08 | J13: -14 | K13: -54.21001927
A14: SAY | B14: 100 | C14: 5.4066 | D14: 545.66 | E14: 640 | F14: 94.34 | G14: 640 | H14: 6.4 | I14: -0.1 | J14: -10 | K14: 17.28915442
A15: nok | B15: 100 | C15: 18.635 | D15: 1878.5 | E15: 1343 | F15: -535.5 | G15: 1343 | H15: 13.43 | I15: -0.05 | J15: -5 | K15: -28.50678733
A16: S | B16: 50 | C16: 48.09 | D16: 2414.45 | E16: 172 | F16: -2242.45 | G16: 172 | H16: 3.44 | I16: -0.03 | J16: -1.5 | K16: -92.8762244
A17: LVLT | B17: 125 | C17: 6.55 | D17: 805 | E17: 168.75 | F17: -636.25 | G17: 168.75 | H17: 1.35 | I17: -0.01 | J17: -1.25 | K17: -79.03726708
A18: CAR | B18: 12.5 | C18: 170.5 | D18: 2168.65 | E18: 145.25 | F18: -2023.4 | G18: 145.25 | H18: 11.62 | I18: -0.04 | J18: -0.5 | K18: -93.30228483
A19: amg | B19: 849.287 | C19: 14.4908 | D19: 12110.8638 | E19: 16306.3104 | F19: 4195.4466 | G19: 16306.3104 | H19: 19.2 | I19: 0 | J19: 0 | K19: 34.6420096
A20: amx | B20: 800.022 | C20: 15.2878 | D20: 11717.4239 | E20: 16400.451 | F20: 4683.0271 | G20: 16400.451 | H20: 20.5 | I20: 0 | J20: 0 | K20: 39.96635387
A21: BLKRK | B21: 558 | C21: 21.48 | D21: 11985.84 | E21: 14508 | F21: 2522.16 | G21: 14508 | H21: 26 | I21: 0 | J21: 0 | K21: 21.04283054
A22: CANRT | B22: 10000 | C22: 1 | D22: 10000 | E22: 10000 | F22: 0 | G22: 10000 | H22: 1 | I22: 0 | J22: 0 | K22: 0
A23: CASH | B23: 374301.414 | C23: 1 | D23: 374302.414 | E23: 374301.414 | F23: -1 | G23: 374301.414 | H23: 1 | I23: 0 | J23: 0 | K23: -0.0002671636523
A24: ccash | B24: 6400 | C24: 0.96 | D24: 6144 | E24: 6144 | F24: 0 | G24: 6144 | H24: 0.96 | I24: 0 | J24: 0 | K24: 0
A25: FAL | B25: 467 | C25: 27.0756 | D25: 12644.3052 | E25: 11203.33 | F25: -1440.9752 | G25: 11203.33 | H25: 23.99 | I25: 0 | J25: 0 | K25: -11.39623868
A26: Flati | B26: 342.168 | C26: 12.665 | D26: 4977.1656 | E26: 18477.072 | F26: 13499.9063 | G26: 18477.072 | H26: 54 | I26: 0 | J26: 0 | K26: 271.2368321
A27: IRAa | B27: 14000 | C27: 1 | D27: 14000 | E27: 14000 | F27: 0 | G27: 14000 | H27: 1 | I27: 0 | J27: 0 | K27: 0
A28: IRAn | B28: 13000 | C28: 1 | D28: 13000 | E28: 13000 | F28: 0 | G28: 13000 | H28: 1 | I28: 0 | J28: 0 | K28: 0
A29: LOAN | B29: 17000 | C29: 1 | D29: 17000 | E29: 17000 | F29: 0 | G29: 17000 | H29: 1 | I29: 0 | J29: 0 | K29: 0
A30: rrspA | B30: 9100 | C30: 0.96 | D30: 8736 | E30: 8736 | F30: 0 | G30: 8736 | H30: 0.96 | I30: 0 | J30: 0 | K30: 0
A31: rrspn | B31: 46300 | C31: 0.96 | D31: 44448 | E31: 44448 | F31: 0 | G31: 44448 | H31: 0.96 | I31: 0 | J31: 0 | K31: 0
A32: RTMNT | B32: 97000 | C32: 1 | D32: 97000 | E32: 97000 | F32: 0 | G32: 97000 | H32: 1 | I32: 0 | J32: 0 | K32: 0
A33: saving | B33: 170000 | C33: 1 | D33: 170000 | E33: 170000 | F33: 0 | G33: 170000 | H33: 1 | I33: 0 | J33: 0 | K33: 0
A34: seli | B34: 255 | C34: 22.049 | D34: 5622.495 | E34: 11220 | F34: 5597.505 | G34: 11220 | H34: 44 | I34: 0 | J34: 0 | K34: 99.5555354
A35: NRG | B35: 75 | C35: 19.8 | D35: 1494.95 | E35: 2166.75 | F35: 671.8 | G35: 2166.75 | H35: 28.89 | I35: 0.13 | J35: 9.75 | K35: 44.93795779
A36: WFC | B36: 225 | C36: 24.7049 | D36: 5590.07 | E36: 6765.75 | F36: 1175.68 | G36: 6765.75 | H36: 30.07 | I36: 0.05 | J36: 11.25 | K36: 21.03157921
A37: LRCX | B37: 50 | C37: 18.95 | D37: 957.45 | E37: 1841 | F37: 883.55 | G37: 1841 | H37: 36.82 | I37: 0.36 | J37: 18 | K37: 92.28158128
A38: USG | B38: 375 | C38: 36.3456 | D38: 10874.66 | E38: 6405 | F38: -4469.66 | G38: 6405 | H38: 17.08 | I38: 0.05 | J38: 18.75 | K38: -41.10160685
A39: UNG | B39: 325 | C39: 12.4678 | D39: 4097.295 | E39: 3779.75 | F39: -317.545 | G39: 3779.75 | H39: 11.63 | I39: 0.06 | J39: 19.5 | K39: -7.750113184
A40: CNI | B40: 50 | C40: 49.0394 | D40: 2461.92 | E40: 2655 | F40: 193.08 | G40: 2655 | H40: 53.1 | I40: 0.4 | J40: 20 | K40: 7.842659388
A41: BMY | B41: 250 | C41: 22.502 | D41: 5543.3 | E41: 5742.5 | F41: 199.2 | G41: 5742.5 | H41: 22.97 | I41: 0.09 | J41: 22.5 | K41: 3.593527321
A42: CEF | B42: 100 | C42: 12.859 | D42: 1295.85 | E42: 1393 | F42: 97.15 | G42: 1393 | H42: 13.93 | I42: 0.24 | J42: 24 | K42: 7.497009685
A43: XOM | B43: 50 | C43: 73.39 | D43: 3680.45 | E43: 3681 | F43: 0.55 | G43: 3681 | H43: 73.62 | I43: 0.5 | J43: 25 | K43: 0.0149438248
A44: KFT | B44: 150 | C44: 31.71 | D44: 4766.45 | E44: 4081.5 | F44: -684.95 | G44: 4081.5 | H44: 27.21 | I44: 0.18 | J44: 27 | K44: -14.37023361
A45: COMS | B45: 150 | C45: 11.125 | D45: 1692.75 | E45: 871.5 | F45: -821.25 | G45: 871.5 | H45: 5.81 | I45: 0.19 | J45: 28.5 | K45: -48.51572884
A46: chk | B46: 100 | C46: 17.0947 | D46: 1729.37 | E46: 2897 | F46: 1167.63 | G46: 2897 | H46: 28.97 | I46: 0.3 | J46: 30 | K46: 67.51765094
A47: ORCL | B47: 50 | C47: 20.8 | D47: 1045 | E47: 1121 | F47: 76 | G47: 1121 | H47: 22.42 | I47: 0.61 | J47: 30.5 | K47: 7.272727273
A48: MU | B48: 325 | C48: 18.1192 | D48: 5363.33 | E48: 2616.25 | F48: -2747.08 | G48: 2616.25 | H48: 8.05 | I48: 0.1 | J48: 32.5 | K48: -51.21967136
A49: T | B49: 109 | C49: 38.2467 | D49: 4267.5 | E49: 2834 | F49: -1433.5 | G49: 2834 | H49: 26 | I49: 0.3 | J49: 32.7 | K49: -33.59109549
A50: EBAY | B50: 50 | C50: 28 | D50: 1409.95 | E50: 1257.5 | F50: -152.45 | G50: 1257.5 | H50: 25.15 | I50: 0.66 | J50: 33 | K50: -10.81244016
A51: HPQ | B51: 332.2 | C51: 43.875 | D51: 13736.39 | E51: 16101.734 | F51: 2365.344 | G51: 16101.734 | H51: 48.47 | I51: 0.1 | J51: 33.22 | K51: 17.21954604
A52: WMT | B52: 50 | C52: 50.0394 | D52: 2511.92 | E52: 2594.5 | F52: 82.58 | G52: 2594.5 | H52: 51.89 | I52: 0.67 | J52: 33.5 | K52: 3.28752508
A53: PG | B53: 100 | C53: 53.47 | D53: 5367.9 | E53: 5779 | F53: 411.1 | G53: 5779 | H53: 57.79 | I53: 0.35 | J53: 35 | K53: 7.658488422
A54: SLT | B54: 175 | C54: 16.3367 | D54: 3007.85 | E54: 3153.5 | F54: 145.65 | G54: 3153.5 | H54: 18.02 | I54: 0.2 | J54: 35 | K54: 4.842329238
A55: CMCSK | B55: 231 | C55: 29.4233 | D55: 6802.45 | E55: 3411.87 | F55: -3390.58 | G55: 3411.87 | H55: 14.77 | I55: 0.16 | J55: 36.96 | K55: -49.84351226
A56: MT | B56: 50 | C56: 35.6 | D56: 1790.95 | E56: 1986.5 | F56: 195.55 | G56: 1986.5 | H56: 39.73 | I56: 0.75 | J56: 37.5 | K56: 10.91878612
A57: EWZ | B57: 50 | C57: 33.5494 | D57: 1687.42 | E57: 3812.5 | F57: 2125.08 | G57: 3812.5 | H57: 76.25 | I57: 0.76 | J57: 38 | K57: 125.936637
A58: LSI | B58: 400 | C58: 10.9483 | D58: 3476.9 | E58: 2292 | F58: -1184.9 | G58: 2292 | H58: 5.73 | I58: 0.1 | J58: 40 | K58: -34.07920849
A59: ALU | B59: 577.6 | C59: 18.2798 | D59: 6907.38 | E59: 2737.824 | F59: -4169.556 | G59: 2737.824 | H59: 4.74 | I59: 0.07 | J59: 40.432 | K59: -60.36378482
A60: HD | B60: 115 | C60: 37.2033 | D60: 3771.65 | E60: 3177.45 | F60: -594.2 | G60: 3177.45 | H60: 27.63 | I60: 0.37 | J60: 42.55 | K60: -15.75437806
A61: UNH | B61: 100 | C61: 48.885 | D61: 4903.45 | E61: 2492 | F61: -2411.45 | G61: 2492 | H61: 24.92 | I61: 0.47 | J61: 47 | K61: -49.17863953
A62: UYG | B62: 800 | C62: 3.704 | D62: 3006.83 | E62: 4912 | F62: 1905.17 | G62: 4912 | H62: 6.14 | I62: 0.06 | J62: 48 | K62: 63.36141385
A63: UPS | B63: 100 | C63: 60.85 | D63: 6104.9 | E63: 5762 | F63: -342.9 | G63: 5762 | H63: 57.62 | I63: 0.5 | J63: 50 | K63: -5.61679962
A64: GLW | B64: 300 | C64: 7.59 | D64: 2296.95 | E64: 4662 | F64: 2365.05 | G64: 4662 | H64: 15.54 | I64: 0.17 | J64: 51 | K64: 102.9648011
A65: MLNK | B65: 80 | C65: 19.795 | D65: 1283.6 | E65: 670.4 | F65: -613.2 | G65: 670.4 | H65: 8.38 | I65: 0.65 | J65: 52 | K65: -47.77189156
A66: PBR | B66: 50 | C66: 25.18 | D66: 1264 | E66: 2570.5 | F66: 1306.5 | G66: 2570.5 | H66: 51.41 | I66: 1.04 | J66: 52 | K66: 103.3623418
A67: FHKCX | B67: 138.44 | C67: 18.03 | D67: 2500.0732 | E67: 3872.1668 | F67: 1372.0936 | G67: 3872.1668 | H67: 27.97 | I67: 0.44 | J67: 60.9136 | K67: 54.88213705
A68: A | B68: 330 | C68: 26.508 | D68: 8846.78 | E68: 9042 | F68: 195.22 | G68: 9042 | H68: 27.4 | I68: 0.19 | J68: 62.7 | K68: 2.206678588
A69: DELL | B69: 885 | C69: 21.2416 | D69: 18597.4 | E69: 13593.6 | F69: -5003.8 | G69: 13593.6 | H69: 15.36 | I69: 0.082 | J69: 72.57 | K69: -26.90591158
A70: PFE | B70: 350 | C70: 28.1086 | D70: 9897.75 | E70: 6293 | F70: -3604.75 | G70: 6293 | H70: 17.98 | I70: 0.21 | J70: 73.5 | K70: -36.41989341
A71: AMAT | B71: 460 | C71: 15.4063 | D71: 7189.525 | E71: 6228.4 | F71: -961.125 | G71: 6228.4 | H71: 13.54 | I71: 0.16 | J71: 73.6 | K71: -13.36840751
A72: INFY | B72: 200 | C72: 35.2049 | D72: 7080.77 | E72: 9586 | F72: 2505.23 | G72: 9586 | H72: 47.93 | I72: 0.37 | J72: 74 | K72: 35.38075661
A73: AMD | B73: 575 | C73: 9.82 | D73: 4433 | E73: 3375.25 | F73: -1057.75 | G73: 3375.25 | H73: 5.87 | I73: 0.13 | J73: 74.75 | K73: -23.8608166
A74: USB | B74: 200 | C74: 26.1367 | D74: 5450.9 | E74: 4762 | F74: -688.9 | G74: 4762 | H74: 23.81 | I74: 0.4 | J74: 80 | K74: -12.63827992
A75: HON | B75: 150 | C75: 30.315 | D75: 4569.15 | E75: 5763 | F75: 1193.85 | G75: 5763 | H75: 38.42 | I75: 0.63 | J75: 94.5 | K75: 26.12849217
A76: CTSH | B76: 100 | C76: 24.135 | D76: 2433.4 | E76: 4039 | F76: 1605.6 | G76: 4039 | H76: 40.39 | I76: 0.99 | J76: 99 | K76: 65.98175392
A77: LOW | B77: 250 | C77: 27.488 | D77: 6943.75 | E77: 5440 | F77: -1503.75 | G77: 5440 | H77: 21.76 | I77: 0.4 | J77: 100 | K77: -21.65616562
A78: JNJ | B78: 150 | C78: 61.6133 | D78: 9262.9 | E78: 9174 | F78: -88.9 | G78: 9174 | H78: 61.16 | I78: 0.7 | J78: 105 | K78: -0.9597426292
A79: gsk | B79: 150 | C79: 41.8333 | D79: 6294.9 | E79: 6286.5 | F79: -8.4 | G79: 6286.5 | H79: 41.91 | I79: 0.71 | J79: 106.5 | K79: -0.1334413573
A80: csco | B80: 485 | C80: 34.6608 | D80: 12948.9375 | E80: 11761.25 | F80: -1187.6875 | G80: 11761.25 | H80: 24.25 | I80: 0.23 | J80: 111.55 | K80: -9.172084582
A81: MOT | B81: 200 | C81: 17.2265 | D81: 3173.605 | E81: 1694 | F81: -1479.605 | G81: 1694 | H81: 8.47 | I81: 0.62 | J81: 124 | K81: -46.62221669
A82: EEM | B82: 160 | C82: 28.5363 | D82: 4692.2 | E82: 6644.8 | F82: 1952.6 | G82: 6644.8 | H82: 41.53 | I82: 0.78 | J82: 124.8 | K82: 41.61374195
A83: ACH | B83: 150 | C83: 16.8233 | D83: 2538.5 | E83: 4480.5 | F83: 1942 | G83: 4480.5 | H83: 29.87 | I83: 0.93 | J83: 139.5 | K83: 76.50187118
A84: WIT | B84: 325 | C84: 9.3922 | D84: 3117.56 | E84: 6249.75 | F84: 3132.19 | G84: 6249.75 | H84: 19.23 | I84: 0.47 | J84: 152.75 | K84: 100.4692773
A85: TXN | B85: 200 | C85: 31.265 | D85: 6272.9 | E85: 4704 | F85: -1568.9 | G85: 4704 | H85: 23.52 | I85: 0.77 | J85: 154 | K85: -25.01076057
A86: DD | B86: 300 | C86: 37.0383 | D86: 11171.2 | E86: 10386 | F86: -785.2 | G86: 10386 | H86: 34.62 | I86: 0.52 | J86: 156 | K86: -7.028788313
A87: MRK | B87: 300 | C87: 38.3683 | D87: 11570.2 | E87: 10119 | F87: -1451.2 | G87: 10119 | H87: 33.73 | I87: 0.52 | J87: 156 | K87: -12.54256625
A88: SNY | B88: 150 | C88: 38.0667 | D88: 5739.85 | E88: 5920.5 | F88: 180.65 | G88: 5920.5 | H88: 39.47 | I88: 1.13 | J88: 169.5 | K88: 3.14729479
A89: SAI | B89: 1330.1332 | C89: 19 | D89: 25272.5308 | E89: 25179.4215 | F89: -93.1093 | G89: 25179.4215 | H89: 18.93 | I89: 0.13 | J89: 172.917316 | K89: -0.3684209577
A90: DIG | B90: 275 | C90: 26.2393 | D90: 7291.69 | E90: 10634.25 | F90: 3342.56 | G90: 10634.25 | H90: 38.67 | I90: 0.78 | J90: 214.5 | K90: 45.84067617
A91: QLD | B91: 225 | C91: 40.5922 | D91: 9057.825 | E91: 11961 | F91: 2903.175 | G91: 11961 | H91: 53.16 | I91: 0.96 | J91: 216 | K91: 32.05156867
A92: INTC | B92: 1075 | C92: 27.8295 | D92: 26760.3875 | E92: 21940.75 | F92: -4819.6375 | G92: 21940.75 | H92: 20.41 | I92: 0.23 | J92: 247.25 | K92: -18.01034271
A93: TWX | B93: 250 | C93: 16.3 | D93: 4245.85 | E93: 7860 | F93: 3614.15 | G93: 7860 | H93: 31.44 | I93: 1.03 | J93: 257.5 | K93: 85.1219426
A94: DDM | B94: 380 | C94: 31.2245 | D94: 11955.625 | E94: 15538.2 | F94: 3582.575 | G94: 15538.2 | H94: 40.89 | I94: 0.68 | J94: 258.4 | K94: 29.96560197
A95: DOW | B95: 425 | C95: 34.543 | D95: 14905.9 | E95: 11487.75 | F95: -3418.15 | G95: 11487.75 | H95: 27.03 | I95: 0.64 | J95: 272 | K95: -22.93152376
A96: IP | B96: 585 | C96: 23.6144 | D96: 13692.57 | E96: 14437.8 | F96: 745.23 | G96: 14437.8 | H96: 24.68 | I96: 0.52 | J96: 304.2 | K96: 5.442586746
A97: cop | B97: 280 | C97: 55.7757 | D97: 15541.15 | E97: 14862.4 | F97: -678.75 | G97: 14862.4 | H97: 53.08 | I97: 1.12 | J97: 313.6 | K97: -4.367437416
A98: SSO | B98: 525 | C98: 22.4845 | D98: 11946.7925 | E98: 19419.75 | F98: 7472.9575 | G98: 19419.75 | H98: 36.99 | I98: 0.61 | J98: 320.25 | K98: 62.55199879
A99: CAT | B99: 100 | C99: 45.9517 | D99: 4606.12 | E99: 5785 | F99: 1178.88 | G99: 5785 | H99: 57.85 | I99: 3.28 | J99: 328 | K99: 25.59377524
A100: BP | B100: 250 | C100: 45.4017 | D100: 11401.175 | E100: 14100 | F100: 2698.825 | G100: 14100 | H100: 56.4 | I100: 1.39 | J100: 347.5 | K100: 23.67146369
A101: DIA | B101: 485 | C101: 108.212 | D101: 52690.6 | E101: 48917.1 | F101: -3773.5 | G101: 48917.1 | H101: 100.86 | I101: 0.87 | J101: 421.95 | K101: -7.16161896
A102: SPY | B102: 475 | C102: 98.257 | D102: 45848.04 | E102: 52150.25 | F102: 6302.21 | G102: 52150.25 | H102: 109.79 | I102: 0.9 | J102: 427.5 | K102: 13.74586569
A103: QQQQ | B103: 1025 | C103: 43.2643 | D103: 44519.35 | E103: 44290.25 | F103: -229.1 | G103: 44290.25 | H103: 43.21 | I103: 0.43 | J103: 440.75 | K103: -0.5146076931
